[Event "Caplin Hastings Masters 2023-24"]
[Site "Hastings"]
[Date "2023.12.30"]
[Round "3.4"]
[White "Royal, Shreyas"]
[Black "Jacobson, Brandon"]
[Result "1-0"]
[ECO "E53"]
[WhiteElo "2438"]
[BlackElo "2538"]
[Annotator "TA"]
[PlyCount "125"]
[EventDate "2023.12.18"]
[EventType "swiss"]
[EventCountry "ENG"]
[SourceTitle "playchess.com"]
[Source "ChessBase"]
[SourceQuality "1"]
[TimeControl "40/6000+30:3000+30"]

{[%evp 18,125,3,7,0,0,11,13,0,10,7,-1,13,10,46,34,38,31,25,29,37,25,20,0,11,0,13,0,7,0,25,0,0,-25,9,17,24,8,39,33,35,26,35,36,45,45,68,23,58,33,43,35,47,19,87,84,75,90,81,81,72,26,181,178,171,180,181,185,195,208,169,150,153,155,151,153,150,90,175,97,119,120,139,122,280,273,264,205,202,206,203,201,198,154,142,139,144,144,217,204,364,364,335,337,790,775,753,701,12842,12841]} 1. d4 {[%emt 0:00:06]} Nf6 {[%emt 0:00:09]} 2. c4 {[%emt 0:00:06]} e6 {[%emt 0:00:18]} 3. Nc3 {[%emt 0:00:26]} Bb4 {[%emt 0:01:27]} 4. e3 {[%emt 0:00:33]} O-O {[%emt 0:00:31]} 5. Bd3 {[%emt 0:00:21]} d5 {[%emt 0:01:26]} 6. a3 {[%emt 0:00:43]} Bxc3+ {[%emt 0:01:07]} 7. bxc3 {[%emt 0:00:10]} dxc4 {[%emt 0:00:05]} 8. Bxc4 {[%emt 0:00:12]} c5 {[%emt 0:00:06]} 9. Nf3 {[%emt 0:01:07]} Qc7 {[%emt 0:01:21]} 10. Be2 {[%emt 0:00:12]} b6 {[%emt 0:00:26] E53: Nimzo-Indian: Rubinstein: Main Line (4...0-0 5 Nf3 d5 6 Bd3 c5 7 0-0).} 11. Bb2 $1 {[%emt 0:00:43][%mdl 4] is more profitable than 11.0-0 at the moment.} Bb7 {[%emt 0:02:35]} 12. O-O {[%emt 0:00:53]} Rd8 {[%emt 0:00:22] The position is equal.} 13. Re1 {[%emt 0:01:52]} Nc6 {[%emt 0:01:51]} 14. Rc1 {[%emt 0:01:43]} Rac8 {[%emt 0:02:13]} (14... Na5 {is interesting.} 15. Nd2 Ne4 16. Nc4 b5) 15. Bd3 {[%emt 0:00:23] [#]} c4 $146 {[%emt 0:16:11]} ({Predecessor:} 15... e5 16. e4 Ne8 17. d5 Ne7 18. c4 f6 19. g3 Nd6 20. Nxe5 fxe5 21. Bxe5 Ng6 {1-0 So,W (2760)-Deac,B (2700) Warsaw Superbet Blitz 2023 (9)}) 16. Bxc4 {[%emt 0:11:49]} Na5 $1 {[%emt 0:00:23]} 17. Bf1 {[%emt 0:29:25]} Bxf3 {[%emt 0:13:24]} 18. Qxf3 {[%emt 0:00:07]} Nc4 {[%emt 0:00:03]} 19. Bxc4 {[%emt 0:00:16]} Qxc4 {[%emt 0:00:03]} 20. Rcd1 {[%emt 0:00:07]} Qb3 {[%emt 0:07:01]} 21. Rd2 {[%emt 0:00:58]} Ne8 {[%emt 0:04:25][%cal Bf6e8,Be8d6,Bd6c4][%mdl 32]} 22. Qd1 {[%emt 0:04:16]} Qxd1 {[%emt 0:13:16]} 23. Rdxd1 {[%emt 0:00:24]} Rc4 {[%emt 0:00:23]} 24. e4 {[%emt 0:02:02]} Nd6 {[%emt 0:00:32]} 25. Rd3 {[%emt 0:06:13]} Kf8 {[%emt 0:01:17][%mdl 1024] Black has compensation.} 26. f3 {[%emt 0:07:19]} Ke7 {[%emt 0:01:35]} 27. Kf2 {[%emt 0:03:39]} Ra4 {[%emt 0:02:12]} 28. Rb1 {[%emt 0:06:19]} Nc4 {[%emt 0:15:53]} 29. Bc1 {[%emt 0:00:35]} Ra5 {[%emt 0:00:03]} 30. Rb3 {[%emt 0:01:57]} Rc8 {[%emt 0:07:08]} 31. Ke2 {[%emt 0:01:13]} Kd6 {[%emt 0:02:10]} 32. Kd1 {[%emt 0:03:05]} f5 {[%emt 0:02:00]} 33. Kc2 {[%emt 0:02:12]} Rf8 {[%emt 0:00:16]} 34. exf5 {[%emt 0:06:52]} exf5 {[%emt 0:01:29]} 35. Rb4 {[%emt 0:03:25]} Kd5 {[%emt 0:03:23]} (35... b5 $1 $11 {keeps the balance.}) 36. a4 {[%emt 0:01:21]} a6 {[%emt 0:05:46]} 37. Rd1 $1 {[%emt 0:01:18] aiming for Re1.} b5 {[%emt 0:02:12]} 38. axb5 {[%emt 0:01:03]} axb5 {[%emt 0:00:47]} 39. Re1 {[%emt 0:00:51]} ({White should try} 39. Kd3 $16) 39... Rf7 $2 {[%emt 0:03:37]} (39... Rb8 $1 $11) 40. Re8 $1 $18 {[%emt 0:00:48]} Kc6 {[%emt 0:00:31]} 41. Kd3 {[%emt 0:20:44]} f4 {[%emt 0:31:15] [#]} 42. Rc8+ $1 {[%emt 0:07:24]} Kd7 {[%emt 0:00:06]} 43. Rc5 {[%emt 0:00:29]} Nd6 {[%emt 0:00:06]} 44. Rb3 {[%emt 0:00:04]} Ra1 {[%emt 0:04:15]} 45. Kc2 {[%emt 0:06:49]} Ra2+ {[%emt 0:02:24]} 46. Rb2 {[%emt 0:01:33]} Ra1 {[%emt 0:01:53]} 47. Rb1 {[%emt 0:03:06]} (47. h4 $142) 47... Ra2+ {[%emt 0:00:48] [#]} (47... Rxb1 $16 {was worth a try.} 48. Kxb1 Rf5) 48. Bb2 {[%emt 0:01:58]} (48. Kb3 $1 $18 {[%cal Rb3a2]} Ra6 49. Rg5) 48... Re7 {[%emt 0:03:36]} 49. Kb3 {[%emt 0:00:12]} Ra7 {[%emt 0:06:46]} 50. Rd5 {[%emt 0:02:51] Threatens to win with Ba3.} b4 $2 {[%emt 0:03:46] Wards off Ba3} 51. Bc1 {[%emt 0:01:44]} ({Inferior is} 51. Kxb4 Rb7+ 52. Ka4 Rb6 $11) ({Don't play} 51. cxb4 $6 Re3+ 52. Bc3 (52. Kc2 Re2+ 53. Kd3 Rxg2 $16) 52... Rc7 $18) 51... bxc3 {[%emt 0:00:32]} 52. Kxc3 {[%emt 0:00:06]} Rf7 {[%emt 0:00:29]} 53. Rb6 {[%emt 0:00:22]} Rc7+ {[%emt 0:00:10]} 54. Kd2 {[%emt 0:03:33]} Rc6 {[%emt 0:00:04]} 55. Rb7+ {[%emt 0:00:06]} Ke6 {[%emt 0:00:22]} 56. Rxf7 {[%emt 0:01:09]} Nxf7 $16 {[%emt 0:01:24][%mdl 4096] Endgame KRB-KRN} 57. Rh5 {[%emt 0:02:03] And now d5+ would win.} Rc4 {[%emt 0:00:33]} (57... g5 $16 58. Rxh7 Kf6) 58. Rxh7 {[%emt 0:00:21]} g5 $2 {[%emt 0:00:32] [#]} (58... Rxd4+ {keeps fighting.} 59. Kc3 {[%mdl 64] Deflection} Rd8 60. Rxg7 (60. Bxf4 g5 $18) 60... Rc8+ 61. Kd2 Ne5) 59. d5+ $1 $18 {[%emt 0:00:17][%cal Bd4d5,Bd5d6][%mdl 32]} Kf6 {[%emt 0:00:25]} (59... Ke7 60. h4) 60. Bb2+ {[%emt 0:00:04]} Ne5 $2 {[%emt 0:00:35]} (60... Ke7 61. Kd3 Ra4) 61. d6 {[%emt 0:00:50] White threatens d7 and mate. White is clearly winning.} Rb4 {[%emt 0:00:29]} 62. Bc3 {[%emt 0:00:37]} Rb5 {[%emt 0:00:22]} 63. Re7 {[%emt 0:00:11] Weighted Error Value: White=0.12 (very precise) /Black=0.22 (precise)} 1-0

[Event "Caplin Hastings Masters 2023-24"]
[Site "Hastings"]
[Date "2023.12.30"]
[Round "3.5"]
[White "Gallagher, Joseph G."]
[Black "Laurent-Paoli, Pierre"]
[Result "0-1"]
[ECO "B22"]
[WhiteElo "2427"]
[BlackElo "2524"]
[Annotator "TA"]
[PlyCount "64"]
[EventDate "2023.12.18"]
[EventType "swiss"]
[EventCountry "ENG"]
[SourceTitle "playchess.com"]
[Source "ChessBase"]
[SourceQuality "1"]
[TimeControl "40/6000+30:3000+30"]

{[%evp 23,64,0,0,0,0,-14,0,-30,0,0,0,0,0,0,0,-6,0,0,0,0,0,-36,-40,-60,-35,-52,-47,-55,-34,-30,-28,-46,0,-302,-286,-313,-153,-450,-445,-763,-779,-1395,-1176]} 1. e4 {[%emt 0:01:17][%cal Be2e4,Be4e5][%mdl 32]} c5 {[%emt 0:03:29]} 2. Nf3 {[%emt 0:00:15]} e6 {[%emt 0:00:58]} 3. c3 {[%emt 0:05:11]} Nf6 {[%emt 0:00:43]} 4. e5 {[%emt 0:00:50]} Nd5 {[%emt 0:00:08]} 5. g3 {[%emt 0:06:46]} Nc6 {[%emt 0:10:05]} 6. Bg2 {[%emt 0:02:35]} d6 {[%emt 0:14:40]} 7. exd6 {[%emt 0:01:23]} Bxd6 {[%emt 0:00:52]} 8. d4 {[%emt 0:02:23]} cxd4 {[%emt 0:08:27]} 9. Nxd4 {[%emt 0:00:13]} Nxd4 {[%emt 0:00:30]} 10. Qxd4 {[%emt 0:00:30]} O-O {[%emt 0:00:39]} 11. O-O {[%emt 0:02:55]} Qc7 {[%emt 0:06:07]} 12. Nd2 {[%emt 0:04:23][%cal Bb1d2,Bd2e4,Be4g5][%mdl 32] 12.c4 deserves study.} Bd7 {[%emt 0:02:00]} 13. Ne4 {[%emt 0:13:37] B22: Sicilian: 2 c3.} Be5 {[%emt 0:03:40]} 14. Qd3 {[%emt 0:02:44]} Rad8 {[%emt 0:10:46]} 15. Ng5 {[%emt 0:03:39][%csl Gg5][%cal Rd3h7] The position is equal.} (15. f4 $5 {[%cal Rf4e5]} Qb6+ 16. Kh1 $11) 15... Nf6 {[%emt 0:02:42]} (15... g6 $5) 16. Nf3 {[%emt 0:02:31] [#]} Bc6 $146 {[%emt 0:03:00]} ({Predecessor:} 16... Be8 17. Qe2 Bd6 18. Bg5 Bc6 19. Bxf6 gxf6 20. Rad1 Qa5 21. a3 Bb5 22. c4 Ba4 {½-½ Wheeler,J (1988)-James,M (1754) IECG TE.2006.S.02304 email 2008}) 17. Qe2 {[%emt 0:12:46]} Bd6 {[%emt 0:00:54]} 18. Bg5 {[%emt 0:04:14]} Be7 {[%emt 0:00:44]} 19. Bf4 {[%emt 0:06:40]} Qa5 {[%emt 0:01:56]} 20. c4 {[%emt 0:02:39]} Be4 {[%emt 0:05:39]} 21. Ne5 {[%emt 0:03:15] Prevents Bd3.} Rd4 {[%emt 0:05:38]} 22. Nf3 {[%emt 0:21:02]} Bd3 {[%emt 0:03:57]} 23. Qe3 {[%emt 0:02:45]} Rdd8 {[%emt 0:01:41] aiming for ...Ng4.} 24. Rfc1 {[%emt 0:04:11]} Bc5 {[%emt 0:13:46]} 25. Qe1 {[%emt 0:00:05]} Qb6 {[%emt 0:01:21] Strongly threatening ...Ng4.} 26. Be3 $1 {[%emt 0:03:46]} Bxe3 {[%emt 0:01:42]} 27. Qxe3 {[%emt 0:00:03]} Qxb2 {[%emt 0:00:29]} (27... Qxe3 $15 28. fxe3 Be4) 28. Qxa7 $2 {[%emt 0:00:29][%mdl 8192]} (28. Ne5 $11 {and White has nothing to worry.} Bf5 29. Re1) 28... b6 $1 $19 {[%emt 0:01:42] ...Ra8 would be deadly.} 29. Ne1 {[%emt 0:01:07] [#]} Bf5 {[%emt 0:01:43]} ({And not} 29... Ng4 30. Nxd3 Rxd3 31. Rf1 $17) (29... Be4 $1 $19 30. Qc7 Ng4) 30. h3 {[%emt 0:00:31] [#] Wards off Ng4} (30. Qb7 $17) 30... Rd2 $1 {[%emt 0:00:47] Black is clearly winning.} 31. c5 {[%emt 0:00:12]} (31. Rd1 $142 Rxf2 32. Qb7) 31... Qd4 {[%emt 0:00:59]} 32. cxb6 {[%emt 0:00:56]} Qxf2+ {[%emt 0:00:24] Weighted Error Value: White=0.88/Black=0.15 (very precise)} 0-1

[Event "Caplin Hastings Masters 2023-24"]
[Site "Hastings"]
[Date "2023.12.30"]
[Round "3.6"]
[White "Petrov, Martin"]
[Black "Unuk, Laura"]
[Result "1/2-1/2"]
[ECO "D30"]
[WhiteElo "2501"]
[BlackElo "2345"]
[Annotator "TA"]
[PlyCount "139"]
[EventDate "2023.12.18"]
[EventType "swiss"]
[EventCountry "ENG"]
[SourceTitle "playchess.com"]
[Source "ChessBase"]
[SourceQuality "1"]
[TimeControl "40/6000+30:3000+30"]

{[%evp 23,139,40,36,30,23,0,29,22,43,13,31,25,31,17,35,14,34,34,33,29,129,66,64,58,51,32,73,52,58,19,208,219,216,210,205,215,197,198,208,200,224,219,225,225,225,225,225,224,224,220,221,209,213,213,233,183,233,142,233,210,232,217,259,281,396,237,407,288,362,238,241,240,241,241,240,241,241,240,248,248,213,186,199,192,192,192,200,185,185,0,0,8,40,0,0,0,0,0,0,0,0,0,0,0,0,0,0,0,0,0,0,0,0,0,0,0,0,0]} 1. c4 {[%emt 0:02:39]} e6 {[%emt 0:02:52]} 2. Nf3 {[%emt 0:01:30]} d5 {[%emt 0:00:16]} 3. e3 {[%emt 0:00:11]} Nf6 {[%emt 0:01:44]} 4. Nc3 {[%emt 0:00:09]} c5 {[%emt 0:05:26]} 5. cxd5 {[%emt 0:01:56]} exd5 {[%emt 0:02:35]} 6. d4 {[%emt 0:01:03]} a6 {[%emt 0:01:49]} 7. Be2 {[%emt 0:05:12]} Nc6 {[%emt 0:01:55]} 8. O-O {[%emt 0:00:18]} Bd6 {[%emt 0:16:44]} 9. b3 {[%emt 0:13:50]} O-O {[%emt 0:04:25]} 10. Bb2 {[%emt 0:11:33]} cxd4 {[%emt 0:16:10]} 11. Nxd4 {[%emt 0:00:16]} Ne5 {[%emt 0:00:15]} 12. Rc1 {[%emt 0:08:20]} Re8 {[%emt 0:11:38]} 13. Nf3 {[%emt 0:02:47] D30: Queen's Gambit Declined: Systems without Nc3.} Nc6 {[%emt 0:06:57] [#]} 14. g3 $146 {[%emt 0:03:27]} (14. Nxd5 $2 Nxd5 15. Qd2 Be6 $19) ({Predecessor:} 14. Rc2 Be6 15. Rd2 Qe7 16. Qa1 Rad8 17. Rfd1 b5 18. Nd4 Nxd4 19. Rxd4 Be5 20. R4d3 Qc7 21. f4 {0-1 Gonda,L (2448)-Palkovi,J (2409) HUN-chT2 Charousek 0506 2005 (8)}) 14... Bf8 {[%emt 0:07:08]} 15. Re1 {[%emt 0:03:01] White has an edge.} h6 {[%emt 0:06:26]} 16. a3 {[%emt 0:06:52]} Bh3 {[%emt 0:01:18]} 17. Bf1 {[%emt 0:00:43]} (17. b4 {is interesting.} Qd6 18. Na4 Ne4 19. Nc5) 17... Bxf1 {[%emt 0:01:59]} 18. Rxf1 {[%emt 0:04:31]} Qd6 {[%emt 0:00:53]} 19. Qd3 {[%emt 0:01:36]} Rad8 {[%emt 0:03:28]} 20. Rfd1 {[%emt 0:02:24]} Qe6 {[%emt 0:01:46][%cal Od5d4]} 21. Ne2 {[%emt 0:05:59]} Qg4 {[%emt 0:12:52]} (21... Ne4 $11) 22. Kg2 {[%emt 0:03:48]} (22. Bxf6 $1 $16 gxf6 23. Nfd4) 22... Ne4 {[%emt 0:00:03]} 23. h3 {[%emt 0:00:06]} Qf5 {[%emt 0:01:10][%cal Od5d4]} 24. Nf4 {[%emt 0:00:17]} Rd6 {[%emt 0:01:27]} 25. Rc5 {[%emt 0:06:25][%cal Rc5d5]} (25. Nxd5 $2 Red8 26. g4 (26. Rc5 $2 Qe6 $19) 26... Qe6 $19) 25... Red8 {[%emt 0:01:04]} 26. g4 {[%emt 0:00:43]} (26. Rxd5 Rxd5 27. Nxd5 Kh8 $11) 26... Qxf4 {[%emt 0:00:35]} 27. Rxc6 $18 {[%emt 0:04:31]} ({Don't take} 27. exf4 $6 Nxc5 28. Qc2 R6d7 $16) 27... Qxf3+ {[%emt 0:00:23]} 28. Kxf3 {[%emt 0:00:02]} Rxc6 {[%emt 0:00:19]} 29. Rc1 {[%emt 0:00:51]} Rxc1 {[%emt 0:00:44]} 30. Bxc1 {[%emt 0:00:05]} Nc5 {[%emt 0:00:27]} 31. Qd1 {[%emt 0:00:51]} Ne6 {[%emt 0:00:28]} 32. Bb2 {[%emt 0:00:07]} Bc5 {[%emt 0:00:19]} 33. b4 {[%emt 0:03:02]} Bb6 {[%emt 0:00:04]} 34. Kg2 {[%emt 0:01:17]} d4 {[%emt 0:01:18]} 35. exd4 {[%emt 0:00:09]} Bxd4 {[%emt 0:00:31]} 36. Bxd4 {[%emt 0:05:55]} Rxd4 {[%emt 0:00:10][%mdl 4096] Endgame KQ-KRN} 37. Qc2 {[%emt 0:00:04]} Rd8 {[%emt 0:00:08]} 38. h4 {[%emt 0:01:20]} g5 {[%emt 0:00:18]} 39. Kg3 {[%emt 0:01:18]} Kg7 {[%emt 0:01:23]} (39... b5 $142 40. f3 Rd6) 40. Qe4 {[%emt 0:03:48]} Rd7 {[%emt 0:00:27]} (40... b5 $16 {was necessary.} 41. Qe5+ Kg8) 41. Qe5+ {[%emt 0:53:05]} Kh7 {[%emt 0:00:55]} 42. Qf6 {[%emt 0:00:00]} b5 {[%emt 0:06:52]} 43. f3 {[%emt 0:00:00]} Rc7 {[%emt 0:03:37]} 44. Kf2 {[%emt 0:00:00]} (44. h5 $142 Rb7 45. Kf2) 44... Ra7 $2 {[%emt 0:03:32]} (44... gxh4 45. Qxh4 Ng5) 45. Ke1 {[%emt 0:00:00]} Rd7 {[%emt 0:01:40]} 46. hxg5 {[%emt 0:00:00]} hxg5 {[%emt 0:00:16] [#]} 47. f4 $1 {[%emt 0:00:00][%mdl 512]} gxf4 {[%emt 0:02:29] [#]} 48. g5 $1 {[%emt 0:00:00][%cal Bg4g5,Bg5g6][%mdl 32]} Kg8 {[%emt 0:01:43]} 49. g6 {[%emt 0:00:00]} Nc7 {[%emt 0:05:17] [#]} 50. g7 {[%emt 0:00:00][%cal Of6h6] White wants to mate with Qh6!} ({But not} 50. Qxf4 $6 fxg6 51. Qf6 Kh7) 50... Ne6 {[%emt 0:00:47]} 51. Qh6 {[%emt 0:00:00][%csl Gg7][%cal Rh6h8]} Nxg7 {[%emt 0:00:16]} 52. Qxa6 {[%emt 0:00:00] And now Qc8+ would win.} Re7+ {[%emt 0:00:11]} 53. Kf2 {[%emt 0:00:00]} Re5 {[%emt 0:00:48]} 54. a4 {[%emt 0:00:00]} bxa4 {[%emt 0:00:52]} 55. b5 {[%emt 0:00:00]} Ne6 {[%emt 0:02:36]} 56. b6 $2 {[%emt 0:00:00]} (56. Qxa4 $18 {aiming for b6.} Kg7 57. b6) 56... Nc5 $11 {[%emt 0:02:01]} 57. Qa8+ {[%emt 0:00:00]} Kg7 {[%emt 0:00:22]} 58. Kf3 {[%emt 0:00:00]} (58. Kf1 $5 {[%cal Ra8c6]}) 58... Re6 {[%emt 0:02:41] The position is equal.} 59. Qa5 {[%emt 0:00:00][%mdl 64] Deflection} Nb7 {[%emt 0:04:37]} 60. Qa7 {[%emt 0:00:00]} a3 {[%emt 0:01:30]} 61. Qxb7 {[%emt 0:01:04] KQ-KR} a2 {[%emt 0:00:35]} 62. Qa7 {[%emt 0:00:17] b7 is the strong threat.} (62. Kxf4 {is a self mate.} a1=Q 63. Qg2+ Kf8 64. Qc2 Qe5+ 65. Kf3 Rf6+ 66. Kg2 Qg5+ 67. Kh1 Rf1+ 68. Kh2 Qh5+ 69. Kg3 Rf3+ 70. Kg2 Qh3+ 71. Kg1 Rf1#) 62... Rxb6 {[%emt 0:00:19]} 63. Qxa2 {[%emt 0:00:14]} Re6 {[%emt 0:00:09]} 64. Qd5 {[%emt 0:00:09]} Rg6 {[%emt 0:01:03]} 65. Qd4+ {[%emt 0:00:18]} Kg8 {[%emt 0:00:06]} 66. Kxf4 {[%emt 0:00:17]} Re6 {[%emt 0:00:15]} 67. Kf5 {[%emt 0:00:19]} Rg6 {[%emt 0:00:19]} 68. Qe5 {[%emt 0:00:34]} Re6 {[%emt 0:00:09]} 69. Qxe6 {[%emt 0:00:11]} fxe6+ {[%emt 0:00:05]} 70. Kxe6 {[%emt 0:00:02] White really could win this. An interesting game.   Weighted Error Value: White=0.22 (precise) /Black=0.22 (precise)} 1/2-1/2

[Event "Caplin Hastings Masters 2023-24"]
[Site "Hastings"]
[Date "2023.12.30"]
[Round "3.7"]
[White "Cherniaev, Alexander"]
[Black "Sengupta, Deep"]
[Result "1-0"]
[ECO "C01"]
[WhiteElo "2381"]
[BlackElo "2501"]
[Annotator "TA"]
[PlyCount "111"]
[EventDate "2023.12.18"]
[EventType "swiss"]
[EventCountry "ENG"]
[SourceTitle "playchess.com"]
[Source "ChessBase"]
[SourceQuality "1"]
[TimeControl "40/6000+30:3000+30"]

{[%evp 10,111,0,-9,4,0,9,0,0,0,0,0,0,0,0,0,0,0,0,0,0,0,22,24,23,32,35,47,131,78,98,90,102,60,56,47,236,246,244,231,241,237,293,285,350,294,420,419,396,370,432,422,438,434,461,351,350,342,378,370,348,260,552,411,422,554,533,532,510,478,529,518,617,512,630,630,1055,981,1007,997,3285,2057,1748,1593,1407,954,5826,5638,6428,6410,6053,6053,4141,2802,29968,29970,29969,4141,29973,29974,29977,29978,29972,29969]} 1. e4 {[%emt 0:00:07]} e6 {[%emt 0:00:03]} 2. d4 {[%emt 0:00:10]} d5 {[%emt 0:00:05]} 3. Bd3 {[%emt 0:00:25]} c5 {[%emt 0:00:42]} 4. exd5 {[%emt 0:02:08]} exd5 {[%emt 0:00:06]} 5. c3 {[%emt 0:03:13]} cxd4 {[%emt 0:04:14]} 6. cxd4 {[%emt 0:00:08]} Nc6 {[%emt 0:00:04] C01: French: Exchange Variation.} 7. Nc3 {[%emt 0:05:52]} Nf6 {[%emt 0:12:10]} 8. Be3 {[%emt 0:06:43]} Bd6 {[%emt 0:04:56] The position is equal.} 9. h3 {[%emt 0:00:13]} O-O {[%emt 0:07:55]} 10. Nf3 {[%emt 0:00:31]} h6 {[%emt 0:02:37]} 11. O-O {[%emt 0:00:29]} a6 {[%emt 0:00:04]} 12. Rc1 {[%emt 0:03:24]} Re8 {[%emt 0:01:03]} 13. a3 {[%emt 0:00:27] [#]} Bc7 $146 {[%emt 0:04:07]} ({Predecessor:} 13... Bd7 14. Bb1 Rc8 15. Qd3 Ne7 16. Ne5 Bf5 17. Qd2 Bxb1 18. Rxb1 Nf5 19. Bf4 Qb6 {½-½ Vovk,Y-Tishin,D (2294) UKR-chT 10th 2002 (1)}) 14. Qc2 {[%emt 0:08:32]} Be6 {[%emt 0:08:40]} 15. Qd2 {[%emt 0:10:02][%cal Oe3h6]} Na5 {[%emt 0:11:43] [#]} 16. Bxh6 $1 {[%emt 0:08:16] Qg5 is the strong threat.} Ne4 {[%emt 0:15:59][%mdl 64] Wards off Qg5. Deflection} 17. Nxe4 {[%emt 0:06:11]} dxe4 {[%emt 0:00:06]} 18. Bxe4 {[%emt 0:13:15][%cal Oh6g7]} Bc4 {[%emt 0:00:19]} (18... Nb3 $14 19. Qg5 Qxg5 20. Bxg5 Nxc1 21. Rxc1 Bd8) 19. Rfe1 {[%emt 0:10:08]} (19. Bb1 $142 {[%cal Oc1c4] And now Rxc4! would win.} Qd6 20. Be3) 19... Nb3 $16 {[%emt 0:00:45]} 20. Qb4 {[%emt 0:00:34]} Nxc1 {[%emt 0:01:07]} 21. Qxc4 {[%emt 0:01:07]} (21. Bxc1 Bd5 22. Bg5 Qd7 23. Bxd5 Qxd5 $15) 21... Rc8 {[%emt 0:02:22] Black is weak on the light squares} 22. Qxc1 {[%emt 0:00:07][%cal Oc1d2] Qd2! would be deadly.} (22. Bxc1 $2 Bh2+ 23. Kxh2 Rxc4 $19) 22... Ba5 {[%emt 0:00:40] Prevents Qd2. Black cannot hold the game after this.} (22... Bh2+ $1 $14 23. Kxh2 Rxc1 24. Bxc1 Qc7+ 25. Ne5 f6 {[%mdl 64] Pin}) 23. Qf4 $1 $18 {[%emt 0:03:52]} (23. Bh7+ $2 Kxh7 24. Ng5+ Kg8 25. Rxe8+ Qxe8 $19) 23... Bxe1 {[%emt 0:00:43]} 24. Qg4 $40 {[%emt 0:00:33][%csl Gh6][%cal Rg4g7][%mdl 128] White attacks with force.} ({Avoid the trap} 24. Bxg7 $2 Kxg7 25. Qg4+ (25. Nxe1 $2 Qxd4 26. Qg5+ Kf8 $19) 25... Kf8 $19) 24... Qf6 {[%emt 0:02:43] [#]} 25. Bg5 {[%emt 0:00:14] This pair of bishops is nice.} Bxf2+ {[%emt 0:23:50]} 26. Kxf2 {[%emt 0:00:52]} Qb6 {[%emt 0:00:02]} 27. b4 {[%emt 0:03:40]} Rc3 {[%emt 0:00:06]} (27... Qb5 $2 28. Bh6 $18) (27... Rc6 $142 28. Bxc6 Qxc6) 28. Qh4 {[%emt 0:01:49] Qh7+ would kill now.} Rxe4 {[%emt 0:02:24]} 29. Qxe4 {[%emt 0:00:19] Strongly threatening Qe8+.} Qe6 {[%emt 0:01:39] Repels Qe8+} 30. Qxb7 {[%emt 0:05:03]} Rxa3 {[%emt 0:00:23]} 31. Bd2 {[%emt 0:02:10]} ({Not} 31. Kg1 Ra1+ 32. Kf2 (32. Kh2 Qd6+ 33. Ne5 f6 $18 {[%mdl 64] Pin}) 32... Ra2+ 33. Bd2 f6 34. Qb8+ Kh7 $18) 31... Qf5 {[%emt 0:00:56]} 32. Qb8+ {[%emt 0:04:01]} Kh7 {[%emt 0:00:01]} 33. Qe5 {[%emt 0:03:04]} Qc2 {[%emt 0:01:29]} 34. Qf4 {[%emt 0:01:49]} f6 {[%emt 0:00:24] Prevents Ng5+.} 35. h4 {[%emt 0:02:50]} Kg6 $2 {[%emt 0:02:31]} (35... a5 36. bxa5 Rxa5) 36. Kg3 {[%emt 0:01:15]} Qf5 {[%emt 0:00:43]} 37. Qg4+ {[%emt 0:02:09]} Qxg4+ {[%emt 0:00:01]} 38. Kxg4 {[%emt 0:00:06]} Kf7 {[%emt 0:00:22]} 39. Kf5 {[%emt 0:01:18]} g6+ {[%emt 0:00:03]} 40. Ke4 {[%emt 0:00:07]} Ke6 {[%emt 0:00:03]} 41. d5+ {[%emt 0:05:37]} Kd6 {[%emt 0:00:35]} 42. Kd4 {[%emt 0:00:20]} Ra2 {[%emt 0:00:03]} 43. g3 {[%emt 0:05:14]} a5 {[%emt 0:00:51]} 44. Bf4+ {[%emt 0:04:02]} Kd7 {[%emt 0:00:01]} 45. bxa5 {[%emt 0:00:20]} Ra4+ {[%emt 0:00:22]} 46. Kc5 {[%emt 0:06:05] Threatens to win with Nd2.} Rxa5+ {[%emt 0:01:17]} 47. Kc4 {[%emt 0:00:02]} Ra3 {[%emt 0:08:15]} 48. Nd2 {[%emt 0:02:36]} g5 {[%emt 0:10:24]} 49. hxg5 {[%emt 0:00:15]} fxg5 {[%emt 0:00:01]} 50. Be5 {[%emt 0:00:14]} Ra4+ {[%emt 0:00:28]} 51. Kd3 {[%emt 0:01:50] Threatening mate with Nb3.} Ke7 {[%emt 0:00:34]} 52. Nc4 {[%emt 0:04:42]} Ra6 {[%emt 0:01:02]} 53. Kd4 {[%emt 0:00:37] White wants to mate with Bc7.} Ra2 {[%emt 0:01:11]} 54. Nb6 {[%emt 0:03:10] White mates.} Rb2 {[%emt 0:02:37]} 55. d6+ {[%emt 0:01:44][%cal Bd5d6,Bd6d7][%mdl 32]} Ke6 {[%emt 0:00:02]} 56. d7 {[%emt 0:00:12] Weighted Error Value: White=0.23 (precise) /Black=0.43} 1-0